fUST/lending_fUST_20240223
["ID","MTS","AMOUNT","RATE_DAILY","PERIOD"]
[314917761,1708637449464,-500.0,0.00019442,2]
[314917762,1708637449475,-500.0,0.00019442,2]
[314917763,1708637449484,-500.0,0.00019442,2]
[314917764,1708637449495,-500.0,0.00019442,2]
[314917765,1708637449505,-500.0,0.00019442,2]
[314917766,1708637449514,-262.049621,0.00019442,2]
[314917767,1708637449524,-500.0,0.00019442,2]
[314917768,1708637449535,-500.0,0.00019442,2]
[314917769,1708637449546,-500.0,0.00019442,2]
[314917770,1708637449556,-500.0,0.00019442,2]
[314917771,1708637449567,-500.0,0.00019442,2]
[314917772,1708637449578,-500.0,0.00019442,2]
[314917773,1708637449587,-500.0,0.00019442,2]
[314917774,1708637449597,-151.0,0.00019443,2]
[314917775,1708637449607,-151.0,0.00019443,2]
[314917776,1708637449617,-500.0,0.00019451,2]
[314917777,1708637449626,-500.0,0.00019451,2]
[314917778,1708637449635,-151.0,0.00019451,2]
[314917779,1708637449647,-500.0,0.00019452,2]
[314917780,1708637449656,-500.0,0.00019452,2]
[314917781,1708637449665,-500.0,0.00019452,2]
[314917782,1708637449674,-500.0,0.00019452,2]
[314917783,1708637449683,-500.0,0.00019452,2]
[314917784,1708637449692,-550.19075802,0.00019452,2]
[314917785,1708637449701,-508.1,0.00019452,2]
[314917786,1708637449711,-500.0,0.00019452,2]
[314917787,1708637449721,-908.21,0.00019452,2]
[314917788,1708637449731,-585.43173339,0.00019452,2]
[314917789,1708637449740,-1558.89,0.00019452,2]
[314917790,1708637449749,-796.2,0.00019452,2]
[314917791,1708637449758,-500.0,0.00019452,2]
[314917792,1708637449768,-500.0,0.00019452,2]
[314917793,1708637449778,-500.0,0.00019452,2]
[314917794,1708637449787,-492.29549158,0.00019452,2]
[314917795,1708637449797,-2376.45,0.00019452,2]
[314917796,1708637449806,-501.74628152,0.00019452,2]
[314917797,1708637449815,-500.0,0.00019452,2]
[314917798,1708637449824,-500.0,0.00019452,2]
[314917799,1708637449834,-1076.35,0.00019452,2]
[314917800,1708637449844,-500.0,0.00019452,2]
[314917801,1708637449854,-500.0,0.00019452,2]
[314917802,1708637449864,-500.0,0.00019452,2]
[314917803,1708637449873,-2140.57,0.00019452,2]
[314917804,1708637449883,-500.0,0.00019452,2]
[314917805,1708637449892,-500.0,0.00019452,2]
[314917806,1708637449901,-500.0,0.00019452,2]
[314917807,1708637449911,-500.0,0.00019452,2]
[314917808,1708637449920,-500.0,0.00019452,2]
[314917809,1708637449930,-358.28980292,0.00019452,2]
[314917810,1708637449940,-500.0,0.00019452,2]
[314917811,1708637449951,-170.93,0.00019452,2]
[314917812,1708637449961,-500.0,0.00019452,2]
[314917813,1708637449971,-500.98901202,0.00019452,2]
[314917814,1708637449980,-525.08,0.00019452,2]
[314917815,1708637449990,-500.0,0.00019452,2]
[314917816,1708637450000,-500.0,0.00019452,2]
[314917817,1708637450010,-523.88,0.00019452,2]
[314917818,1708637450020,-500.0,0.00019452,2]
[314917819,1708637450029,-594.26,0.00019452,2]
[314917820,1708637450039,-151.0,0.00019452,2]
[314917821,1708637450048,-500.0,0.00019452,2]
[314917822,1708637450057,-500.0,0.00019452,2]
[314917823,1708637450067,-1232.94,0.00019452,2]
[314917824,1708637450077,-4281.54,0.00019452,2]
[314917825,1708637450087,-828.3,0.00019452,2]
[314917826,1708637450097,-7325.11,0.00019452,2]
[314917827,1708637450107,-161.06904491,0.00019452,2]
[314917828,1708637450116,-1677.95,0.00019452,2]
[314917829,1708637450126,-230.53,0.00019452,2]
[314917830,1708637450135,-2710.0,0.00019452,2]
[314917831,1708637450144,-500.0,0.00019452,2]
[314917832,1708637450154,-500.0,0.00019452,2]
[314917833,1708637450163,-500.0,0.00019452,2]
[314917834,1708637450173,-201.96,0.00019452,2]
[314917835,1708637450182,-500.0,0.00019452,2]
[314917836,1708637450191,-500.0,0.00019452,2]
[314917837,1708637450201,-955.85,0.00019452,2]
[314917838,1708637450211,-501.25023183,0.00019452,2]
[314917839,1708637450221,-6459.68,0.00019452,2]
[314917840,1708637450230,-500.0,0.00019452,2]
[314917841,1708637450239,-500.0,0.00019452,2]
[314917842,1708637450249,-1176.07,0.00019452,2]
[314917843,1708637450259,-1400.48,0.00019452,2]
[314917844,1708637450269,-2407.97,0.00019452,2]
[314917845,1708637450278,-1492.43,0.00019452,2]
[314917846,1708637450288,-500.0,0.00019452,2]
[314917847,1708637450297,-1858.47417232,0.00019452,2]
[314917848,1708637450404,-299.2,0.00019452,2]
[314917992,1708638638430,-163.38875591,0.00018981,2]
[314917994,1708638638440,-169.65562432,0.00019078,2]
[314917996,1708638638450,-2497.90455698,0.00019081,2]
[314918057,1708638641758,-217.29113963,0.00019081,2]
[314918059,1708638641768,-620.00000781,0.00019082,2]
[314918060,1708638641778,-284.9368746,0.00019177,2]
[314918062,1708638641788,-500.0,0.00019178,2]
[314918063,1708638641801,-500.0,0.00019178,2]
[314918065,1708638641810,-832.52,0.00019178,2]
[314918067,1708638641820,-500.0,0.00019178,2]
[314918069,1708638641829,-500.0,0.00019178,2]
[314918070,1708638641838,-524.26935218,0.00019178,2]
[314918071,1708638641848,-500.0,0.00019178,2]
[314918072,1708638641857,-500.0,0.00019178,2]
[314918073,1708638641867,-377.12784735,0.00019178,2]
[314918085,1708638644232,-122.87215265,0.00019178,2]
[314918086,1708638644242,-273.04784735,0.00019178,2]
[314918122,1708638872778,4203.31343404,0.0001968,10]
[314918148,1708639834507,-2715.19569661,0.00018286,2]
[314918149,1708639834516,-648.8193036,0.00018287,2]
[314918150,1708639834525,-2070.58537759,0.00019068,2]
[314918151,1708639834567,-361.42525069,0.00019068,2]
[314918153,1708639834576,-171.87354965,0.00019178,2]
[314918155,1708639834591,-328.12645035,0.00019178,2]
[314918157,1708639834600,-500.0,0.00019178,2]
[314918159,1708639834609,-30.75199962,0.00019178,2]
[314918218,1708639838565,-513.97800038,0.00019178,2]
[314918219,1708639838574,-222.23,0.00019178,2]
[314918220,1708639838583,-209.6,0.00019178,2]
[314918221,1708639838593,-500.0,0.00019178,2]
[314918222,1708639838602,-500.0,0.00019178,2]
[314918223,1708639838611,-832.8,0.00019178,2]
[314918224,1708639838621,-403.27049593,0.00019178,2]
[314918225,1708639838643,-96.72950407,0.00019178,2]
[314918226,1708639838656,-1653.44,0.00019178,2]
[314918227,1708639838667,-500.0,0.00019178,2]
[314918228,1708639838677,-729.85,0.00019178,2]
[314918229,1708639838686,-1428.98,0.00019178,2]
[314918230,1708639838695,-476.36601766,0.00019178,2]
[314918231,1708639838707,-23.63398234,0.00019178,2]
[314918232,1708639838716,-207.82960315,0.00019178,2]
[314918233,1708639838726,-446.25177179,0.00019178,2]
[314918234,1708639838739,-53.74822821,0.00019178,2]
[314918235,1708639838749,-224.94,0.00019178,2]
[314918236,1708639838758,-553.04164931,0.00019178,2]
[314918237,1708639838768,-500.0,0.00019178,2]
[314918238,1708639838777,-500.0,0.00019178,2]
[314918239,1708639838786,-718.63,0.00019178,2]
[314918240,1708639838795,-500.0,0.00019178,2]
[314918241,1708639838807,-2178.41,0.00019178,2]
[314918242,1708639838817,-675.6876826,0.00019178,2]
[314918323,1708639849456,-310.9623174,0.00019178,2]
[314918324,1708639849466,-1962.18,0.00019178,2]
[314918325,1708639849475,-500.0,0.00019178,2]
[314918326,1708639849484,-3924.75,0.00019178,2]
[314918327,1708639849493,-6714.68,0.00019178,2]
[314918328,1708639849503,-500.0,0.00019178,2]
[314918329,1708639849512,-1538.12,0.00019178,2]
[314918330,1708639849521,-892.57,0.00019178,2]
[314918331,1708639849530,-191.19424003,0.00019178,2]
[314918332,1708639849542,-568.07575997,0.00019178,2]
[314918333,1708639849551,-48.32424003,0.00019178,2]
[314918334,1708639849581,-348.73073188,0.00019178,2]
[314918336,1708640674766,2221.63410327,0.00021088,14]
[314918341,1708640963595,2870.0,0.0003,120]
[314918346,1708640967800,2870.0,0.0003,120]
[314918347,1708640971171,2870.0,0.0003,120]
[314918348,1708640978449,2870.0,0.0003,120]
[314918349,1708640978780,2870.0,0.0003,120]
[314918350,1708640979114,2870.0,0.0003,120]
[314918351,1708640979449,2870.0,0.0003,120]
[314918352,1708640979798,2870.0,0.0003,120]
[314918353,1708640980216,2870.0,0.0003,120]
[314918354,1708640980452,2870.0,0.0003,120]
[314918355,1708640980808,2870.0,0.0003,120]
[314918356,1708640981314,2870.0,0.0003,120]
[314918357,1708640981743,2870.0,0.0003,120]
[314918358,1708640982083,2870.0,0.0003,120]
[314918359,1708640988272,2870.0,0.0003,120]
[314918360,1708640988636,2870.0,0.0003,120]
[314918361,1708640989009,2870.0,0.0003,120]
[314918364,1708640999024,2870.0,0.0003,120]
[314918365,1708640999567,2870.0,0.0003,120]
[314918366,1708640999857,2870.0,0.0003,120]
[314918402,1708641034416,-2715.19569661,0.00018072,2]
[314918403,1708641034425,-437.6112463,0.00018073,2]
[314918404,1708641034434,-4792.09714332,0.00018073,2]
[314918428,1708641037793,-1385.93864738,0.00018073,2]
[314918430,1708641037803,-392.66581014,0.000189,2]
[314918432,1708641037813,-620.00000039,0.00019034,2]
[314918434,1708641037823,-169.6556243,0.00019078,2]
[314918435,1708641037832,-169.56425606,0.00019078,2]
[314918436,1708641037842,-404.88315003,0.00019178,2]
[314918437,1708641037867,-95.11684997,0.00019178,2]
[314918438,1708641037876,-500.0,0.00019178,2]
[314918439,1708641037885,-500.0,0.00019178,2]
[314918440,1708641037895,-688.69,0.00019178,2]
[314918441,1708641037905,-1584.55,0.00019178,2]
[314918442,1708641037914,-500.0,0.00019178,2]
[314918443,1708641037925,-500.0,0.00019178,2]
[314918444,1708641037935,-449.08333344,0.00019178,2]
[314918445,1708641037944,-797.84,0.00019178,2]
[314918446,1708641037954,-500.0,0.00019178,2]
[314918447,1708641037963,-699.43,0.00019178,2]
[314918448,1708641037973,-1369.44,0.00019178,2]
[314918449,1708641037983,-500.0,0.00019178,2]
[314918450,1708641037992,-500.0,0.00019178,2]
[314918451,1708641038002,-500.0,0.00019178,2]
[314918452,1708641038011,-500.0,0.00019178,2]
[314918453,1708641038020,-500.0,0.00019178,2]
[314918454,1708641038030,-500.0,0.00019178,2]
[314918455,1708641038039,-540.79372869,0.00019178,2]
[314918456,1708641038048,-500.0,0.00019178,2]
[314918457,1708641038057,-500.0,0.00019178,2]
[314918458,1708641038066,-2225.29,0.00019178,2]
[314918459,1708641038076,-500.0,0.00019178,2]
[314918460,1708641038085,-500.0,0.00019178,2]
[314918461,1708641038218,-500.0,0.00019178,2]
[314918462,1708641038227,-1011.97,0.00019178,2]
[314918463,1708641038236,-500.0,0.00019178,2]
[314918464,1708641038245,-500.0,0.00019178,2]
[314918465,1708641038254,-500.0,0.00019178,2]
[314918466,1708641038263,-1532.97522918,0.00019178,2]
[314918564,1708641041189,-503.25477082,0.00019178,2]
[314918567,1708641041198,-190.27064881,0.00019178,2]
[314918639,1708641043977,-309.72935119,0.00019178,2]
[314918640,1708641043986,-500.0,0.00019178,2]
[314918641,1708641043996,-500.0,0.00019178,2]
[314918642,1708641044005,-500.0,0.00019178,2]
[314918643,1708641044014,-151.0,0.00019178,2]
[314918644,1708641044023,-561.72,0.00019178,2]
[314918645,1708641044033,-988.1,0.00019178,2]
[314918646,1708641044042,-500.0,0.00019178,2]
[314918647,1708641044051,-500.0,0.00019178,2]
[314918648,1708641044061,-4174.96,0.00019178,2]
[314918649,1708641044070,-1130.19,0.00019178,2]
[314918650,1708641044079,-327.92465826,0.00019178,2]
[314918651,1708641044091,-451.03534174,0.00019178,2]
[314918652,1708641044101,-3533.25,0.00019178,2]
[314918653,1708641044110,-6718.6,0.00019178,2]
[314918654,1708641044120,-500.0,0.00019178,2]
[314918655,1708641044129,-500.0,0.00019178,2]
[314918656,1708641044138,-1574.6,0.00019178,2]
[314918657,1708641044147,-546.3631228,0.00019178,2]
[314918658,1708641044157,-500.0,0.00019178,2]
[314918659,1708641044165,-1000.0,0.00019178,2]
[314918660,1708641044176,-1500.63,0.00019178,2]
[314918661,1708641044185,-500.0,0.00019178,2]
[314918662,1708641044194,-500.0,0.00019178,2]
[314918663,1708641044203,-500.0,0.00019178,2]
[314918664,1708641044212,-500.0,0.00019178,2]
[314918665,1708641044221,-1440.02,0.00019178,2]
[314918666,1708641044231,-2484.17,0.00019178,2]
[314918667,1708641044240,-500.0,0.00019178,2]
[314918668,1708641044249,-345.4447297,0.00019178,2]
[314918669,1708641044258,-1224.59,0.00019178,2]
[314918670,1708641044267,-500.0,0.00019178,2]
[314918671,1708641044277,-929.28,0.00019178,2]
[314918672,1708641044286,-500.0,0.00019178,2]
[314918673,1708641044295,-500.47459778,0.00019178,2]
[314918674,1708641044304,-500.0,0.00019178,2]
[314918675,1708641044313,-2279.36,0.00019178,2]
[314918676,1708641044322,-500.0,0.00019178,2]
[314918677,1708641044331,-500.0,0.00019178,2]
[314918678,1708641044341,-5984.61,0.00019178,2]
[314918679,1708641044350,-1283.77,0.00019178,2]
[314918680,1708641044359,-500.0,0.00019178,2]
[314918681,1708641044369,-500.0,0.00019178,2]
[314918682,1708641044378,-500.0,0.00019178,2]
[314918683,1708641044387,-500.0,0.00019178,2]
[314918684,1708641044396,-10484.88,0.00019178,2]
[314918685,1708641044405,-500.0,0.00019178,2]
[314918686,1708641044414,-500.0,0.00019178,2]
[314918687,1708641044425,-242.4307533,0.00019178,2]
[314918688,1708641044433,-500.0,0.00019178,2]
[314918689,1708641044442,-500.0,0.00019178,2]
[314918690,1708641044452,-500.0,0.00019178,2]
[314918691,1708641044460,-2622.07,0.00019178,2]
[314918692,1708641044470,-500.0,0.00019178,2]
[314918693,1708641044479,-500.0,0.00019178,2]
[314918694,1708641044488,-174.55924258,0.00019178,2]
[314918695,1708641044497,-500.0,0.00019178,2]
[314918696,1708641044506,-2255.94,0.00019178,2]
[314918697,1708641044515,-500.0,0.00019178,2]
[314918698,1708641044524,-500.0,0.00019178,2]
[314918699,1708641044533,-834.22,0.00019178,2]
[314918700,1708641044546,-663.96,0.00019178,2]
[314918701,1708641044555,-520.17,0.00019178,2]
[314918702,1708641044564,-508.31,0.00019178,2]
[314918703,1708641044573,-500.0,0.00019178,2]
[314918704,1708641044583,-500.80808631,0.00019178,2]
[314918705,1708641044591,-170.91579356,0.00019178,2]
[314918706,1708641044600,-500.0,0.00019178,2]
[314918707,1708641044609,-500.0,0.00019178,2]
[314918708,1708641044618,-500.0,0.00019178,2]
[314918709,1708641044627,-864.12,0.00019178,2]
[314918710,1708641044637,-500.0,0.00019178,2]
[314918711,1708641044646,-500.0,0.00019178,2]
[314918712,1708641044655,-151.0,0.00019178,2]
[314918713,1708641044664,-500.0,0.00019178,2]
[314918714,1708641044674,-500.0,0.00019178,2]
[314918715,1708641044683,-500.0,0.00019178,2]
[314918716,1708641044692,-855.38,0.00019178,2]
[314918717,1708641044702,-500.0,0.00019178,2]
[314918718,1708641044711,-500.0,0.00019178,2]
[314918719,1708641044720,-500.0,0.00019178,2]
[314918720,1708641044729,-500.0,0.00019178,2]
[314918721,1708641044738,-500.0,0.00019178,2]
[314918722,1708641044747,-8340.12,0.00019178,2]
[314918723,1708641044756,-428.79225024,0.00019178,2]
[314918724,1708641044765,-500.0,0.00019178,2]
[314918725,1708641044774,-151.0,0.00019178,2]
[314918726,1708641044783,-151.0,0.00019178,2]
[314918727,1708641044792,-171.943144,0.00019178,2]
[314918728,1708641044802,-171.286285,0.00019178,2]
[314918729,1708641044811,-166.666666,0.00019178,2]
[314918730,1708641044821,-49355.73772723,0.00019351,2]
[314918731,1708641044830,-287.35696558,0.0001939,2]
[314918732,1708641044840,-262.0760436,0.000194,2]
[314918733,1708641044850,-153.0,0.000194,2]
[314918734,1708641044860,-153.0,0.000194,2]
[314918735,1708641044869,-153.0,0.000194,2]
[314918736,1708641044879,-153.0,0.000194,2]
[314918737,1708641044888,-500.0,0.00019448,2]
[314918738,1708641044897,-522.939739,0.00019448,2]
[314918739,1708641044906,-500.0,0.00019448,2]
[314918740,1708641044915,-501.5610479,0.00019448,2]
[314918741,1708641044925,-500.0,0.00019448,2]
[314918742,1708641044934,-242.41526906,0.00019448,2]
[314918743,1708641044943,-707.83921949,0.00019448,2]
[314918744,1708641044952,-420.32759426,0.00019448,2]
[314918745,1708641044961,-707.83921949,0.00019448,2]
[314918746,1708641044970,-707.83921949,0.00019448,2]
[314918747,1708641044979,-500.0,0.00019448,2]
[314918748,1708641044990,-500.0,0.00019448,2]
[314918749,1708641044999,-707.83921949,0.00019448,2]
[314918750,1708641045009,-500.0,0.00019448,2]
[314918751,1708641045018,-707.83921949,0.00019448,2]
[314918752,1708641045027,-707.83921949,0.00019448,2]
[314918753,1708641045036,-287.94741207,0.00019448,2]
[314918754,1708641045046,-707.83921949,0.00019448,2]
[314918755,1708641045055,-707.83921949,0.00019448,2]
[314918756,1708641045064,-707.83921949,0.00019448,2]
[314918757,1708641045073,-707.83921949,0.00019448,2]
[314918758,1708641045083,-707.83921949,0.00019448,2]
[314918759,1708641045092,-707.83921949,0.00019448,2]
[314918760,1708641045102,-707.83921949,0.00019448,2]
[314918761,1708641045112,-707.83921949,0.00019448,2]
[314918762,1708641045121,-707.83921949,0.00019448,2]
[314918763,1708641045132,-707.83921949,0.00019448,2]
[314918764,1708641045141,-707.83921949,0.00019448,2]
[314918765,1708641045150,-707.83921949,0.00019448,2]
[314918766,1708641045159,-707.83921949,0.00019448,2]
[314918767,1708641045168,-707.83921949,0.00019448,2]
[314918768,1708641045179,-707.83921949,0.00019448,2]
[314918769,1708641045188,-707.83921949,0.00019448,2]
[314918770,1708641045197,-707.83921949,0.00019448,2]
[314918771,1708641045206,-707.83921949,0.00019448,2]
[314918772,1708641045216,-707.83921949,0.00019448,2]
[314918773,1708641045225,-707.83921949,0.00019448,2]
[314918774,1708641045234,-707.83921949,0.00019448,2]
[314918775,1708641045242,-707.83921949,0.00019448,2]
[314918776,1708641045251,-707.83921949,0.00019448,2]
[314918777,1708641045260,-707.83921949,0.00019448,2]
[314918778,1708641045269,-707.83921949,0.00019448,2]
[314918779,1708641045278,-707.83921949,0.00019448,2]
[314918780,1708641045287,-707.83921949,0.00019448,2]
[314918781,1708641045296,-707.83921949,0.00019448,2]
[314918782,1708641045305,-707.83921949,0.00019448,2]
[314918783,1708641045314,-707.83921949,0.00019448,2]
[314918784,1708641045323,-707.83921949,0.00019448,2]
[314918785,1708641045331,-707.83921949,0.00019448,2]
[314918786,1708641045340,-707.83921949,0.00019448,2]
[314918788,1708641045350,-707.83921949,0.00019448,2]
[314918789,1708641045358,-707.83921949,0.00019448,2]
[314918791,1708641045368,-707.83921949,0.00019448,2]
[314918793,1708641045377,-707.83921949,0.00019448,2]
[314918795,1708641045386,-707.83921949,0.00019448,2]
[314918797,1708641045395,-707.83921949,0.00019448,2]
[314918798,1708641045404,-707.83921949,0.00019448,2]
[314918800,1708641045414,-707.83921949,0.00019448,2]
[314918802,1708641045423,-707.83921949,0.00019448,2]
[314918804,1708641045432,-707.83921949,0.00019448,2]
[314918806,1708641045442,-707.83921949,0.00019448,2]
[314918808,1708641045450,-707.83921949,0.00019448,2]
[314918810,1708641045459,-707.83921949,0.00019448,2]
[314918812,1708641045468,-707.83921949,0.00019448,2]
[314918814,1708641045477,-707.83921949,0.00019448,2]
[314918816,1708641045486,-707.83921949,0.00019448,2]
[314918818,1708641045495,-707.83921949,0.00019448,2]
[314918820,1708641045504,-707.83921949,0.00019448,2]
[314918822,1708641045513,-707.83921949,0.00019448,2]
[314918824,1708641045522,-707.83921949,0.00019448,2]
[314918826,1708641045531,-707.83921949,0.00019448,2]
[314918828,1708641045543,-707.83921949,0.00019448,2]
[314918830,1708641045552,-707.83921949,0.00019448,2]
[314918832,1708641045561,-707.83921949,0.00019448,2]
[314918834,1708641045570,-707.83921949,0.00019448,2]
[314918836,1708641045580,-707.83921949,0.00019448,2]
[314918838,1708641045588,-500.0,0.0001945,2]
[314918839,1708641045610,-500.0,0.0001945,2]
[314918840,1708641045620,-500.0,0.00019451,2]
[314918841,1708641045630,-500.0,0.00019451,2]
[314918842,1708641045639,-500.0,0.00019452,2]
[314918843,1708641045648,-500.0,0.00019452,2]
[314918844,1708641045657,-500.0,0.00019452,2]
[314918845,1708641045666,-688.69,0.00019452,2]
[314918846,1708641045677,-1584.55,0.00019452,2]
[314918847,1708641045686,-500.0,0.00019452,2]
[314918848,1708641045695,-500.0,0.00019452,2]
[314918849,1708641045704,-797.84,0.00019452,2]
[314918850,1708641045713,-699.43,0.00019452,2]
[314918851,1708641045723,-1369.44,0.00019452,2]
[314918852,1708641045732,-500.0,0.00019452,2]
[314918853,1708641045741,-500.0,0.00019452,2]
[314918854,1708641045752,-500.0,0.00019452,2]
[314918855,1708641045761,-2225.29,0.00019452,2]
[314918856,1708641045771,-500.0,0.00019452,2]
[314918857,1708641045781,-1011.97,0.00019452,2]
[314918858,1708641045791,-500.0,0.00019452,2]
[314918859,1708641045800,-2036.23,0.00019452,2]
[314918860,1708641045811,-500.0,0.00019452,2]
[314918861,1708641045821,-561.72,0.00019452,2]
[314918862,1708641045830,-988.1,0.00019452,2]
[314918863,1708641045840,-4174.96,0.00019452,2]
[314918864,1708641045849,-1130.19,0.00019452,2]
[314918865,1708641045859,-778.96,0.00019452,2]
[314918866,1708641045869,-3533.25,0.00019452,2]
[314918867,1708641045878,-6718.6,0.00019452,2]
[314918868,1708641045888,-500.0,0.00019452,2]
[314918869,1708641045897,-1574.6,0.00019452,2]
[314918870,1708641045906,-1500.63,0.00019452,2]
[314918871,1708641045916,-1440.02,0.00019452,2]
[314918872,1708641045926,-2484.17,0.00019452,2]
[314918873,1708641045936,-1224.59,0.00019452,2]
[314918874,1708641045945,-929.28,0.00019452,2]
[314918875,1708641045955,-500.0,0.00019452,2]
[314918876,1708641045964,-500.0,0.00019452,2]
[314918877,1708641045974,-2279.36,0.00019452,2]
[314918878,1708641045983,-500.0,0.00019452,2]
[314918879,1708641045993,-5984.61,0.00019452,2]
[314918880,1708641046002,-1283.77,0.00019452,2]
[314918881,1708641046012,-411.01,0.00019452,2]
[314918882,1708641046022,-500.0,0.00019452,2]
[314918883,1708641046032,-10484.88,0.00019452,2]
[314918884,1708641046041,-383.62336049,0.00019452,2]
[314918885,1708641046051,-500.0,0.00019452,2]
[314918886,1708641046060,-2622.07,0.00019452,2]
[314918887,1708641046070,-500.0,0.00019452,2]
[314918888,1708641046079,-500.0,0.00019452,2]
[314918889,1708641046089,-500.0,0.00019452,2]
[314918890,1708641046099,-2255.94,0.00019452,2]
[314918891,1708641046108,-500.0,0.00019452,2]
[314918892,1708641046118,-834.22,0.00019452,2]
[314918893,1708641046127,-663.96,0.00019452,2]
[314918894,1708641046136,-508.31,0.00019452,2]
[314918895,1708641046146,-500.0,0.00019452,2]
[314918896,1708641046155,-500.0,0.00019452,2]
[314918897,1708641046164,-864.12,0.00019452,2]
[314918898,1708641046174,-500.0,0.00019452,2]
[314918899,1708641046183,-500.0,0.00019452,2]
[314918900,1708641046192,-855.38,0.00019452,2]
[314918901,1708641046202,-500.0,0.00019452,2]
[314918902,1708641046211,-8340.12,0.00019452,2]
[314918903,1708641046220,-300.0,0.00019493,2]
[314918904,1708641046230,-153.0,0.000195,2]
[314918905,1708641046239,-400.694443,0.000195,2]
[314918906,1708641046248,-153.0,0.000196,2]
[314918907,1708641046257,-166.666666,0.00019627,2]
[314918908,1708641046266,-300.0,0.00019635,2]
[314918909,1708641046276,-500.0,0.00019679,2]
[314918910,1708641046285,-500.0,0.00019679,2]
[314918911,1708641046294,-65609.06455142,0.0001968,2]
[314918912,1708641046304,-569.97193576,0.00019725,2]
[314918913,1708641046313,-500.0,0.00019726,2]
[314918914,1708641046322,-500.0,0.00019726,2]
[314918915,1708641046332,-500.0,0.00019726,2]
[314918916,1708641046341,-688.69,0.00019726,2]
[314918917,1708641046350,-1584.55,0.00019726,2]
[314918918,1708641046360,-500.0,0.00019726,2]
[314918919,1708641046370,-500.0,0.00019726,2]
[314918920,1708641046380,-797.84,0.00019726,2]
[314918921,1708641046390,-699.43,0.00019726,2]
[314918922,1708641046399,-1369.44,0.00019726,2]
[314918923,1708641046408,-500.0,0.00019726,2]
[314918924,1708641046418,-456.80215265,0.00019726,2]
[314918925,1708641046428,-500.0,0.00019726,2]
[314918926,1708641046437,-2225.29,0.00019726,2]
[314918927,1708641046446,-501.64511843,0.00019726,2]
[314918928,1708641046455,-1011.97,0.00019726,2]
[314918929,1708641046465,-500.0,0.00019726,2]
[314918930,1708641046594,-2036.23,0.00019726,2]
[314918931,1708641046621,-500.0,0.00019726,2]
[314918932,1708641046630,-561.72,0.00019726,2]
[314918933,1708641046639,-988.1,0.00019726,2]
[314918934,1708641046648,-4174.96,0.00019726,2]
[314918935,1708641046657,-1130.19,0.00019726,2]
[314918936,1708641046666,-778.96,0.00019726,2]
[314918937,1708641046675,-3533.25,0.00019726,2]
[314918938,1708641046685,-6718.6,0.00019726,2]
[314918939,1708641046694,-500.0,0.00019726,2]
[314918940,1708641046704,-1574.6,0.00019726,2]
[314918941,1708641046713,-1500.63,0.00019726,2]
[314918942,1708641046722,-1440.02,0.00019726,2]
[314918943,1708641046731,-2484.17,0.00019726,2]
[314918944,1708641046740,-1224.59,0.00019726,2]
[314918945,1708641046750,-929.28,0.00019726,2]
[314918946,1708641046759,-500.0,0.00019726,2]
[314918947,1708641046768,-2279.36,0.00019726,2]
[314918948,1708641046777,-500.0,0.00019726,2]
[314918949,1708641046786,-5984.61,0.00019726,2]
[314918950,1708641046796,-500.0,0.00019726,2]